[Event "*** Titled Tuesday Blitz"]
[Site "Chess.com"]
[Date "2020.12.01"]
[Round "2"]
[White "MikeSailer"]
[Black "csati17"]
[Result "0-1"]
[WhiteElo "2147"]
[BlackElo "2597"]
[TimeControl "180+1"]
[EndTime "10:19:03 PST"]
[Termination "csati17 won by resignation"]

1. d4 {[%clk 0:02:59.3]} 1... Nf6 {[%clk 0:02:59.8]} 2. Nf3 {[%clk 0:02:59.4]}
2... g6 {[%clk 0:02:58.9]} 3. Bf4 {[%clk 0:02:59.8]} 3... Bg7 {[%clk 0:02:59]}
4. e3 {[%clk 0:03:00.4]} 4... d6 {[%clk 0:02:58.4]} 5. Be2 {[%clk 0:03:00.5]}
5... Nh5 {[%clk 0:02:58.6]} 6. Bg5 {[%clk 0:03:00.8]} 6... h6 {[%clk 0:02:58.6]}
7. Bh4 {[%clk 0:03:01.4]} 7... g5 {[%clk 0:02:58.8]} 8. Nfd2 {[%clk 0:03:00]}
8... Nf6 {[%clk 0:02:56.5]} 9. Bg3 {[%clk 0:03:00.4]} 9... c5 {[%clk 0:02:51.3]}
10. c4 {[%clk 0:02:54]} 10... Qb6 {[%clk 0:02:35.1]} 11. Nb3 {[%clk 0:02:42.7]}
11... Ne4 {[%clk 0:02:28.8]} 12. Nc3 {[%clk 0:02:38.6]} 12... Nxc3 {[%clk
0:02:24.2]} 13. bxc3 {[%clk 0:02:38.5]} 13... Bf5 {[%clk 0:02:16.5]} 14. O-O
{[%clk 0:02:37.7]} 14... O-O {[%clk 0:02:07.9]} 15. dxc5 {[%clk 0:02:26.3]}
15... dxc5 {[%clk 0:02:00.9]} 16. Qd5 {[%clk 0:02:26.3]} 16... Be6 {[%clk
0:01:47.2]} 17. Qxc5 {[%clk 0:02:26.1]} 17... Rc8 {[%clk 0:01:26.8]} 18. Qxb6
{[%clk 0:02:00.8]} 18... axb6 {[%clk 0:01:27.7]} 19. Nd4 {[%clk 0:02:00.8]}
19... Bxc4 {[%clk 0:01:24.6]} 20. Bxc4 {[%clk 0:01:50.9]} 20... Rxc4 {[%clk
0:01:25.5]} 21. Rab1 {[%clk 0:01:37.2]} 21... Bxd4 {[%clk 0:01:15.7]} 22. cxd4
{[%clk 0:01:35.1]} 22... Nd7 {[%clk 0:01:15.1]} 23. Rb2 {[%clk 0:01:29.7]} 23...
Rac8 {[%clk 0:01:04.4]} 24. h3 {[%clk 0:01:22.7]} 24... Rc2 {[%clk 0:01:02]} 25.
Rfb1 {[%clk 0:01:22.2]} 25... f5 {[%clk 0:00:57.1]} 26. Kf1 {[%clk 0:01:03.1]}
26... Kf7 {[%clk 0:00:55.8]} 27. Ke1 {[%clk 0:01:03]} 27... R8c4 {[%clk
0:00:44.8]} 28. Kd1 {[%clk 0:01:00.3]} 28... R2c3 {[%clk 0:00:43.3]} 29. Rb3
{[%clk 0:00:56.2]} 29... Rc2 {[%clk 0:00:32.7]} 30. R3b2 {[%clk 0:00:54.4]}
30... Rxb2 {[%clk 0:00:32.1]} 31. Rxb2 {[%clk 0:00:54.5]} 31... Ke6 {[%clk
0:00:30.6]} 32. Rc2 {[%clk 0:00:49.7]} 32... Kd5 {[%clk 0:00:29.3]} 33. Rxc4
{[%clk 0:00:44.2]} 33... Kxc4 {[%clk 0:00:30.2]} 34. Kc2 {[%clk 0:00:44.9]}
34... b5 {[%clk 0:00:26.3]} 35. Bc7 {[%clk 0:00:43.5]} 35... Nf6 {[%clk
0:00:24]} 36. Be5 {[%clk 0:00:36.2]} 36... Nd5 {[%clk 0:00:22]} 37. g4 {[%clk
0:00:30.2]} 37... e6 {[%clk 0:00:13.4]} 38. Bg7 {[%clk 0:00:28.8]} 38... fxg4
{[%clk 0:00:10.8]} 39. hxg4 {[%clk 0:00:28.8]} 39... Nb4+ {[%clk 0:00:10.7]} 40.
Kb2 {[%clk 0:00:29]} 40... Nd3+ {[%clk 0:00:11]} 41. Kc2 {[%clk 0:00:27.6]}
41... Nxf2 {[%clk 0:00:11.9]} 42. Bxh6 {[%clk 0:00:27.6]} 42... Nxg4 {[%clk
0:00:12.3]} 43. Bxg5 {[%clk 0:00:27.8]} 43... b4 {[%clk 0:00:12.3]} 44. Bf4
{[%clk 0:00:25.5]} 44... Nf6 {[%clk 0:00:11.9]} 45. Be5 {[%clk 0:00:17.3]} 45...
Nd5 {[%clk 0:00:11.9]} 46. e4 {[%clk 0:00:15.5]} 46... Nc3 {[%clk 0:00:12.3]}
47. d5 {[%clk 0:00:12.9]} 47... exd5 {[%clk 0:00:13.2]} 48. exd5 {[%clk
0:00:13]} 48... Nxd5 {[%clk 0:00:13.4]} 49. Bd6 {[%clk 0:00:07.3]} 49... Nc3
{[%clk 0:00:12.7]} 50. Kb2 {[%clk 0:00:07.5]} 50... b5 {[%clk 0:00:11.3]} 51. a3
{[%clk 0:00:03.8]} 51... b3 {[%clk 0:00:10.8]} 52. Bb4 {[%clk 0:00:03.2]} 52...
Na4+ {[%clk 0:00:09.5]} 53. Kb1 {[%clk 0:00:02.5]} 53... Kd3 {[%clk 0:00:09.9]}
54. Ba5 {[%clk 0:00:01.3]} 54... Nc5 {[%clk 0:00:08.6]} 55. Bb4 {[%clk
0:00:01.4]} 55... Kc4 {[%clk 0:00:08.9]} 56. Kb2 {[%clk 0:00:01.4]} 56... Nd3+
{[%clk 0:00:07.9]} 57. Kb1 {[%clk 0:00:02]} 57... Nxb4 {[%clk 0:00:08.3]} 58.
axb4 {[%clk 0:00:02.9]} 58... Kxb4 {[%clk 0:00:08.8]} 59. Kb2 {[%clk 0:00:03.6]}
59... Kc4 {[%clk 0:00:09.4]} 60. Kb1 {[%clk 0:00:04]} 60... Kc3 {[%clk 0:00:10]}
61. Kc1 {[%clk 0:00:04.6]} 61... b2+ {[%clk 0:00:10.6]} 62. Kb1 {[%clk
0:00:05.4]} 62... b4 {[%clk 0:00:11.2]} 63. Ka2 {[%clk 0:00:06.2]} 63... b1=Q+
{[%clk 0:00:11.3]} 64. Kxb1 {[%clk 0:00:04.9]} 64... Kb3 {[%clk 0:00:11.9]} 65.
Ka1 {[%clk 0:00:05.1]} 65... Kc2 {[%clk 0:00:12.2]} 66. Ka2 {[%clk 0:00:05.8]}
66... b3+ {[%clk 0:00:13.1]} 67. Ka1 {[%clk 0:00:05.8]} 67... b2+ {[%clk
0:00:14]} 68. Ka2 {[%clk 0:00:06.6]} 68... b1=Q+ {[%clk 0:00:14.9]} 0-1

[Event "*** Titled Tuesday Blitz"]
[Site "Chess.com"]
[Date "2020.12.01"]
[Round "2"]
[White "elohunter1999"]
[Black "Azerichess"]
[Result "1/2-1/2"]
[WhiteElo "2578"]
[BlackElo "2952"]
[TimeControl "180+1"]
[EndTime "10:19:13 PST"]
[Termination "Game drawn - insufficient material"]

1. e4 {[%clk 0:03:00]} 1... c6 {[%clk 0:02:58.3]} 2. Nc3 {[%clk 0:02:56.7]} 2...
d5 {[%clk 0:02:58.2]} 3. Nf3 {[%clk 0:02:56.6]} 3... Bg4 {[%clk 0:02:58.7]} 4.
h3 {[%clk 0:02:56.7]} 4... Bxf3 {[%clk 0:02:58.9]} 5. Qxf3 {[%clk 0:02:57.6]}
5... e6 {[%clk 0:02:59.8]} 6. Be2 {[%clk 0:02:57.7]} 6... Bc5 {[%clk 0:02:58.7]}
7. O-O {[%clk 0:02:57]} 7... Nd7 {[%clk 0:02:51.7]} 8. Qg3 {[%clk 0:02:22.4]}
8... Qf6 {[%clk 0:02:36.1]} 9. d3 {[%clk 0:02:17.4]} 9... Ne7 {[%clk 0:02:25.6]}
10. Na4 {[%clk 0:02:04]} 10... dxe4 {[%clk 0:01:54]} 11. dxe4 {[%clk 0:01:44.6]}
11... O-O {[%clk 0:01:11]} 12. Bg5 {[%clk 0:01:23.1]} 12... Qd4 {[%clk
0:01:10.6]} 13. Nxc5 {[%clk 0:00:54.7]} 13... Qxc5 {[%clk 0:01:11.5]} 14. b4
{[%clk 0:00:48.3]} 14... Qxb4 {[%clk 0:01:11.2]} 15. Rab1 {[%clk 0:00:48.4]}
15... Qc5 {[%clk 0:01:11.8]} 16. Rxb7 {[%clk 0:00:47.1]} 16... Ng6 {[%clk
0:00:41.1]} 17. Rxd7 {[%clk 0:00:44.4]} 17... Qxc2 {[%clk 0:00:41.7]} 18. Bd3
{[%clk 0:00:37.2]} 18... Qxa2 {[%clk 0:00:42.2]} 19. h4 {[%clk 0:00:34.4]} 19...
h6 {[%clk 0:00:39.7]} 20. Bxh6 {[%clk 0:00:30.7]} 20... Rad8 {[%clk 0:00:39.5]}
21. Rxd8 {[%clk 0:00:27.3]} 21... Rxd8 {[%clk 0:00:40.4]} 22. h5 {[%clk
0:00:27.1]} 22... gxh6 {[%clk 0:00:34.6]} 23. hxg6 {[%clk 0:00:27.2]} 23... Qb3
{[%clk 0:00:31.1]} 24. gxf7+ {[%clk 0:00:17.2]} 24... Kxf7 {[%clk 0:00:32]} 25.
Be2 {[%clk 0:00:16.5]} 25... Qxg3 {[%clk 0:00:29.7]} 26. fxg3+ {[%clk
0:00:16.8]} 26... Ke7 {[%clk 0:00:30.6]} 27. Ra1 {[%clk 0:00:16.7]} 27... Rd7
{[%clk 0:00:31]} 28. e5 {[%clk 0:00:15.7]} 28... Kd8 {[%clk 0:00:26.6]} 29. Ra6
{[%clk 0:00:15.2]} 29... Rc7 {[%clk 0:00:25.3]} 30. Bc4 {[%clk 0:00:13.4]} 30...
Kc8 {[%clk 0:00:20.5]} 31. Bxe6+ {[%clk 0:00:13]} 31... Kb7 {[%clk 0:00:21.4]}
32. Ra1 {[%clk 0:00:09]} 32... Re7 {[%clk 0:00:22.3]} 33. Rb1+ {[%clk
0:00:08.7]} 33... Kc7 {[%clk 0:00:22.1]} 34. Bf5 {[%clk 0:00:07.7]} 34... Rxe5
{[%clk 0:00:22.5]} 35. g4 {[%clk 0:00:08.1]} 35... a5 {[%clk 0:00:22.9]} 36. Kf2
{[%clk 0:00:08.3]} 36... a4 {[%clk 0:00:22.9]} 37. Ra1 {[%clk 0:00:07.9]} 37...
Ra5 {[%clk 0:00:23.1]} 38. Ra3 {[%clk 0:00:08.4]} 38... Kb6 {[%clk 0:00:23.6]}
39. Bc2 {[%clk 0:00:08.8]} 39... Kb5 {[%clk 0:00:23.8]} 40. Kf3 {[%clk 0:00:05]}
40... Kb4 {[%clk 0:00:24.1]} 41. Ra1 {[%clk 0:00:05.2]} 41... a3 {[%clk
0:00:24.5]} 42. Kf4 {[%clk 0:00:04.3]} 42... c5 {[%clk 0:00:23.3]} 43. Bf5
{[%clk 0:00:03.5]} 43... c4 {[%clk 0:00:22.9]} 44. Rb1+ {[%clk 0:00:03.5]} 44...
Kc3 {[%clk 0:00:22.6]} 45. Rc1+ {[%clk 0:00:04]} 45... Kb4 {[%clk 0:00:19.4]}
46. Rb1+ {[%clk 0:00:04.4]} 46... Kc5 {[%clk 0:00:19.7]} 47. g5 {[%clk
0:00:04.1]} 47... hxg5+ {[%clk 0:00:19.4]} 48. Kxg5 {[%clk 0:00:05]} 48... a2
{[%clk 0:00:19.4]} 49. Ra1 {[%clk 0:00:05]} 49... Kb4 {[%clk 0:00:20.3]} 50. Kf4
{[%clk 0:00:05.1]} 50... Kb3 {[%clk 0:00:20.6]} 51. g4 {[%clk 0:00:05.3]} 51...
Kb2 {[%clk 0:00:20.2]} 52. Rg1 {[%clk 0:00:05]} 52... c3 {[%clk 0:00:19.7]} 53.
g5 {[%clk 0:00:04.2]} 53... Ra4+ {[%clk 0:00:18.3]} 54. Ke5 {[%clk 0:00:02.9]}
54... Ra5+ {[%clk 0:00:18]} 55. Kf6 {[%clk 0:00:03.3]} 55... Ra6+ {[%clk
0:00:17.2]} 56. Ke5 {[%clk 0:00:03.6]} 56... Ra5+ {[%clk 0:00:08.6]} 57. Kf6
{[%clk 0:00:03.8]} 57... a1=Q {[%clk 0:00:09.5]} 58. Rxa1 {[%clk 0:00:03.1]}
58... Rxa1 {[%clk 0:00:10.4]} 59. g6 {[%clk 0:00:03.5]} 59... Rf1 {[%clk
0:00:09]} 60. g7 {[%clk 0:00:03.1]} 60... c2 {[%clk 0:00:08.5]} 61. g8=Q {[%clk
0:00:03.3]} 61... c1=Q {[%clk 0:00:09]} 62. Qb8+ {[%clk 0:00:03.9]} 62... Kc3
{[%clk 0:00:08.9]} 63. Qc7+ {[%clk 0:00:03.8]} 63... Kd2 {[%clk 0:00:09]} 64.
Qxc1+ {[%clk 0:00:03.8]} 64... Rxc1 {[%clk 0:00:08.7]} 65. Kg7 {[%clk
0:00:03.5]} 65... Ke3 {[%clk 0:00:09.2]} 66. Bg6 {[%clk 0:00:03.3]} 66... Kf4
{[%clk 0:00:09.8]} 67. Bf7 {[%clk 0:00:03.7]} 67... Kg5 {[%clk 0:00:10.7]} 68.
Bg8 {[%clk 0:00:03.9]} 68... Rc7+ {[%clk 0:00:11.3]} 69. Kh8 {[%clk 0:00:04.2]}
69... Kf6 {[%clk 0:00:11.5]} 70. Bh7 {[%clk 0:00:04.3]} 70... Rc8+ {[%clk
0:00:11.2]} 71. Bg8 {[%clk 0:00:04.9]} 71... Ra8 {[%clk 0:00:12.1]} 72. Kh7
{[%clk 0:00:04.9]} 72... Ke7 {[%clk 0:00:12.9]} 73. Kh8 {[%clk 0:00:05.3]} 73...
Kf8 {[%clk 0:00:12.7]} 74. Kh7 {[%clk 0:00:05.6]} 74... Ra2 {[%clk 0:00:11.4]}
75. Bxa2 {[%clk 0:00:05.2]} 1/2-1/2

[Event "*** Titled Tuesday Blitz"]
[Site "Chess.com"]
[Date "2020.12.01"]
[Round "2"]
[White "szabadaba"]
[Black "TheCavemanChesss"]
[Result "0-1"]
[WhiteElo "2670"]
[BlackElo "2481"]
[TimeControl "180+1"]
[EndTime "10:19:23 PST"]
[Termination "TheCavemanChesss won by checkmate"]

1. e4 {[%clk 0:03:00.7]} 1... c5 {[%clk 0:02:59]} 2. Nc3 {[%clk 0:03:00.2]} 2...
Nc6 {[%clk 0:02:57.8]} 3. g3 {[%clk 0:03:00.8]} 3... g6 {[%clk 0:02:54.9]} 4.
Bg2 {[%clk 0:03:00.9]} 4... Bg7 {[%clk 0:02:55.8]} 5. d3 {[%clk 0:03:01.5]} 5...
Rb8 {[%clk 0:02:47.6]} 6. f4 {[%clk 0:03:00.5]} 6... b5 {[%clk 0:02:47.4]} 7.
Nf3 {[%clk 0:03:00.1]} 7... d6 {[%clk 0:02:47.1]} 8. O-O {[%clk 0:02:59.4]} 8...
Bd7 {[%clk 0:02:43.7]} 9. h3 {[%clk 0:02:58.9]} 9... e6 {[%clk 0:02:39.1]} 10.
Rb1 {[%clk 0:02:56.6]} 10... Nge7 {[%clk 0:02:38.8]} 11. Be3 {[%clk 0:02:53.3]}
11... O-O {[%clk 0:02:38.5]} 12. Qd2 {[%clk 0:02:52]} 12... b4 {[%clk
0:02:35.9]} 13. Ne2 {[%clk 0:02:52]} 13... Qa5 {[%clk 0:02:35.2]} 14. Nc1 {[%clk
0:02:52]} 14... d5 {[%clk 0:02:34.2]} 15. e5 {[%clk 0:02:50.2]} 15... d4 {[%clk
0:02:31.7]} 16. Bf2 {[%clk 0:02:50]} 16... Qb6 {[%clk 0:02:22.8]} 17. Qe2 {[%clk
0:02:39.4]} 17... Rfd8 {[%clk 0:02:15.5]} 18. Nb3 {[%clk 0:02:39.3]} 18... Na5
{[%clk 0:02:06.3]} 19. Ng5 {[%clk 0:02:37.4]} 19... Bc6 {[%clk 0:02:01.2]} 20.
Ne4 {[%clk 0:02:37]} 20... Nxb3 {[%clk 0:01:55.9]} 21. axb3 {[%clk 0:02:36.7]}
21... Bxe4 {[%clk 0:01:51]} 22. Bxe4 {[%clk 0:02:36.2]} 22... Nd5 {[%clk
0:01:50.3]} 23. Qf3 {[%clk 0:02:32.3]} 23... a5 {[%clk 0:01:37.2]} 24. Ra1
{[%clk 0:02:31]} 24... Ra8 {[%clk 0:01:33.7]} 25. Ra4 {[%clk 0:02:30]} 25... Qc7
{[%clk 0:01:29.3]} 26. Rfa1 {[%clk 0:02:26.5]} 26... Ra7 {[%clk 0:01:00.3]} 27.
Kh1 {[%clk 0:02:25.4]} 27... Qb6 {[%clk 0:00:49.5]} 28. g4 {[%clk 0:02:20.2]}
28... Qb5 {[%clk 0:00:49]} 29. h4 {[%clk 0:02:04.3]} 29... Nb6 {[%clk
0:00:35.6]} 30. Bc6 {[%clk 0:02:01.5]} 30... Qa6 {[%clk 0:00:35.6]} 31. R4a2
{[%clk 0:01:56.1]} 31... Nd5 {[%clk 0:00:35.2]} 32. Bxd5 {[%clk 0:01:50.1]}
32... Rxd5 {[%clk 0:00:34.1]} 33. h5 {[%clk 0:01:49.3]} 33... Qb6 {[%clk
0:00:32.5]} 34. Kg2 {[%clk 0:01:45]} 34... Qd8 {[%clk 0:00:31.8]} 35. Rh1 {[%clk
0:01:43.3]} 35... Qd7 {[%clk 0:00:25.9]} 36. Bh4 {[%clk 0:01:32.8]} 36... a4
{[%clk 0:00:24.1]} 37. Rha1 {[%clk 0:01:32.1]} 37... c4 {[%clk 0:00:09.4]} 38.
dxc4 {[%clk 0:01:29]} 38... Rda5 {[%clk 0:00:09.3]} 39. bxa4 {[%clk 0:01:12]}
39... Rxa4 {[%clk 0:00:09.2]} 40. Rxa4 {[%clk 0:01:12]} 40... Rxa4 {[%clk
0:00:09.5]} 41. Rxa4 {[%clk 0:01:11.4]} 41... Qxa4 {[%clk 0:00:10.4]} 42. b3
{[%clk 0:01:11.4]} 42... Qa2 {[%clk 0:00:10.4]} 43. Qe4 {[%clk 0:01:08.3]} 43...
Bf8 {[%clk 0:00:10.9]} 44. Bf2 {[%clk 0:01:03.4]} 44... Bc5 {[%clk 0:00:11]} 45.
h6 {[%clk 0:01:01.3]} 45... Kf8 {[%clk 0:00:11.2]} 46. Qc6 {[%clk 0:01:00.4]}
46... Qa5 {[%clk 0:00:10.4]} 47. Qd7 {[%clk 0:00:54.8]} 47... Qb6 {[%clk
0:00:09.1]} 48. Bh4 {[%clk 0:00:48.7]} 48... Kg8 {[%clk 0:00:06.9]} 49. Qe8+
{[%clk 0:00:40.8]} 49... Bf8 {[%clk 0:00:06.9]} 50. Be7 {[%clk 0:00:37.7]} 50...
Qb7+ {[%clk 0:00:06.6]} 51. Kg3 {[%clk 0:00:37.3]} 51... Qxe7 {[%clk 0:00:07.2]}
52. Qa8 {[%clk 0:00:35.4]} 52... Qd7 {[%clk 0:00:07.1]} 53. g5 {[%clk 0:00:35]}
53... d3 {[%clk 0:00:07.5]} 54. cxd3 {[%clk 0:00:34.7]} 54... Qxd3+ {[%clk
0:00:08.4]} 55. Kg4 {[%clk 0:00:35.3]} 55... Qxb3 {[%clk 0:00:09.2]} 56. c5
{[%clk 0:00:34.6]} 56... Qd1+ {[%clk 0:00:09.4]} 57. Kg3 {[%clk 0:00:34.5]}
57... Qd3+ {[%clk 0:00:09.4]} 58. Kg4 {[%clk 0:00:34.7]} 58... Qe2+ {[%clk
0:00:09.5]} 59. Kg3 {[%clk 0:00:35.1]} 59... Qe1+ {[%clk 0:00:09.7]} 60. Kg4
{[%clk 0:00:35.3]} 60... Qd1+ {[%clk 0:00:09.9]} 61. Kg3 {[%clk 0:00:35.5]}
61... Qc1 {[%clk 0:00:10.4]} 62. c6 {[%clk 0:00:34.5]} 62... Qc3+ {[%clk
0:00:10.9]} 63. Kg4 {[%clk 0:00:34.4]} 63... b3 {[%clk 0:00:11.8]} 64. Qb7
{[%clk 0:00:34]} 64... b2 {[%clk 0:00:10.6]} 65. c7 {[%clk 0:00:34.3]} 65...
Qxc7 {[%clk 0:00:10.7]} 66. Qxc7 {[%clk 0:00:32.8]} 66... b1=Q {[%clk
0:00:10.8]} 67. Qd8 {[%clk 0:00:32.3]} 67... Qg1+ {[%clk 0:00:10.7]} 68. Kh4
{[%clk 0:00:32.4]} 68... Qf2+ {[%clk 0:00:10.8]} 69. Kg4 {[%clk 0:00:32.4]}
69... Qg2+ {[%clk 0:00:11.3]} 70. Kh4 {[%clk 0:00:30.7]} 70... Qf3 {[%clk
0:00:11.9]} 71. Qd4 {[%clk 0:00:27.4]} 71... Be7 {[%clk 0:00:12.1]} 72. Qc4
{[%clk 0:00:23.7]} 72... Bd8 {[%clk 0:00:10.3]} 73. Qa4 {[%clk 0:00:19.2]} 73...
Kf8 {[%clk 0:00:09.3]} 74. Qb4+ {[%clk 0:00:19.3]} 74... Ke8 {[%clk 0:00:06.8]}
75. Qa4+ {[%clk 0:00:19.5]} 75... Ke7 {[%clk 0:00:06.8]} 76. Qb4+ {[%clk
0:00:19.2]} 76... Kd7 {[%clk 0:00:07]} 77. Qa4+ {[%clk 0:00:13.4]} 77... Qc6
{[%clk 0:00:06.7]} 78. Qa7+ {[%clk 0:00:11.3]} 78... Qc7 {[%clk 0:00:06.6]} 79.
Qa4+ {[%clk 0:00:10.8]} 79... Qc6 {[%clk 0:00:07.1]} 80. Qa7+ {[%clk 0:00:11]}
80... Bc7 {[%clk 0:00:07.7]} 81. Qd4+ {[%clk 0:00:11.1]} 81... Ke8 {[%clk
0:00:06.8]} 82. Qb4 {[%clk 0:00:10.8]} 82... Bb6 {[%clk 0:00:06.3]} 83. Kg4
{[%clk 0:00:09.6]} 83... Qg2+ {[%clk 0:00:06.1]} 84. Kh4 {[%clk 0:00:09.2]}
84... Bf2# {[%clk 0:00:06.8]} 0-1

[Event "*** Titled Tuesday Blitz"]
[Site "Chess.com"]
[Date "2020.12.01"]
[Round "2"]
[White "SHIVACalypso"]
[Black "Roza_Idrisova"]
[Result "0-1"]
[WhiteElo "2384"]
[BlackElo "2169"]
[TimeControl "180+1"]
[EndTime "10:19:23 PST"]
[Termination "Roza_Idrisova won by resignation"]

1. Nf3 {[%clk 0:03:00.1]} 1... d5 {[%clk 0:02:58.9]} 2. c4 {[%clk 0:02:57.4]}
2... c6 {[%clk 0:02:58.9]} 3. d4 {[%clk 0:02:57]} 3... Nf6 {[%clk 0:02:59]} 4.
Nc3 {[%clk 0:02:57.2]} 4... a6 {[%clk 0:02:58.9]} 5. e3 {[%clk 0:02:56.5]} 5...
b5 {[%clk 0:02:59.1]} 6. b3 {[%clk 0:02:55.9]} 6... Bg4 {[%clk 0:02:58.3]} 7. h3
{[%clk 0:02:53.1]} 7... Bh5 {[%clk 0:02:57.6]} 8. Bd3 {[%clk 0:02:49.1]} 8... e6
{[%clk 0:02:57.6]} 9. O-O {[%clk 0:02:48]} 9... Be7 {[%clk 0:02:57.4]} 10. Bd2
{[%clk 0:02:46.2]} 10... O-O {[%clk 0:02:57]} 11. Rc1 {[%clk 0:02:45.8]} 11...
Nbd7 {[%clk 0:02:56.3]} 12. Be2 {[%clk 0:02:37.8]} 12... b4 {[%clk 0:02:54.6]}
13. Na4 {[%clk 0:02:35.2]} 13... Ne4 {[%clk 0:02:54.3]} 14. c5 {[%clk
0:02:26.5]} 14... a5 {[%clk 0:02:53.5]} 15. Ra1 {[%clk 0:02:20.5]} 15... Bf6
{[%clk 0:02:49.9]} 16. a3 {[%clk 0:02:18.9]} 16... bxa3 {[%clk 0:02:48.3]} 17.
Rxa3 {[%clk 0:02:19.8]} 17... Qc7 {[%clk 0:02:38.3]} 18. Qc2 {[%clk 0:02:13.7]}
18... e5 {[%clk 0:02:21.9]} 19. Nc3 {[%clk 0:01:45.3]} 19... Bg6 {[%clk
0:02:05.7]} 20. Bd3 {[%clk 0:01:36.3]} 20... Nxd2 {[%clk 0:02:01.1]} 21. Nxd2
{[%clk 0:01:27.5]} 21... exd4 {[%clk 0:01:58.7]} 22. exd4 {[%clk 0:01:26.1]}
22... Bxd4 {[%clk 0:01:57.7]} 23. Bxg6 {[%clk 0:01:23.5]} 23... hxg6 {[%clk
0:01:57.2]} 24. Na4 {[%clk 0:01:18.4]} 24... Qf4 {[%clk 0:01:50.7]} 25. Nf3
{[%clk 0:01:13.6]} 25... Bf6 {[%clk 0:01:48.4]} 26. Nb6 {[%clk 0:01:04.2]} 26...
Ra7 {[%clk 0:01:41.8]} 27. Nxd7 {[%clk 0:01:02.8]} 27... Rxd7 {[%clk 0:01:41.6]}
28. Rxa5 {[%clk 0:01:03.2]} 28... Qb4 {[%clk 0:01:36.6]} 29. Ra4 {[%clk
0:01:02.4]} 29... Qb5 {[%clk 0:01:36.4]} 30. Rb1 {[%clk 0:00:45.5]} 30... Re8
{[%clk 0:01:34.5]} 31. b4 {[%clk 0:00:42.6]} 31... Re2 {[%clk 0:01:29.7]} 32.
Qb3 {[%clk 0:00:42.3]} 32... Rb7 {[%clk 0:01:21.9]} 33. Ra8+ {[%clk 0:00:36.8]}
33... Kh7 {[%clk 0:01:19.8]} 34. Qd1 {[%clk 0:00:27]} 34... Re4 {[%clk
0:01:12.5]} 35. Rc8 {[%clk 0:00:20.3]} 35... Rxb4 {[%clk 0:00:57.3]} 36. Rxb4
{[%clk 0:00:19.3]} 36... Qxb4 {[%clk 0:00:57.2]} 37. Rxc6 {[%clk 0:00:18.9]}
37... Qe4 {[%clk 0:00:55.9]} 38. Nd2 {[%clk 0:00:09.8]} 38... Qd3 {[%clk
0:00:51.7]} 39. Rb6 {[%clk 0:00:06.3]} 39... Rc7 {[%clk 0:00:45.6]} 40. Rb3
{[%clk 0:00:06.1]} 40... Qd4 {[%clk 0:00:40.8]} 41. Qe2 {[%clk 0:00:03.3]} 41...
Rxc5 {[%clk 0:00:36.4]} 42. Rd3 {[%clk 0:00:03.9]} 42... Rc1+ {[%clk 0:00:33]}
43. Kh2 {[%clk 0:00:03.8]} 43... Qe5+ {[%clk 0:00:30.5]} 44. Qxe5 {[%clk
0:00:04.4]} 44... Bxe5+ {[%clk 0:00:30.4]} 45. g3 {[%clk 0:00:05.2]} 45... d4
{[%clk 0:00:30.2]} 46. Nf3 {[%clk 0:00:05.2]} 46... Bf6 {[%clk 0:00:30]} 47.
Nxd4 {[%clk 0:00:05.4]} 47... Ra1 {[%clk 0:00:23]} 48. Nf3 {[%clk 0:00:04.5]}
48... Ra2 {[%clk 0:00:22.6]} 49. Kg2 {[%clk 0:00:05.2]} 49... g5 {[%clk
0:00:22.4]} 50. g4 {[%clk 0:00:05.2]} 50... Kg6 {[%clk 0:00:22]} 51. Rd5 {[%clk
0:00:05.5]} 51... Rb2 {[%clk 0:00:20.3]} 52. Nd4 {[%clk 0:00:05.8]} 52... Rd2
{[%clk 0:00:17.9]} 53. Rd7 {[%clk 0:00:05.1]} 53... Rxd4 {[%clk 0:00:17.7]} 54.
Rb7 {[%clk 0:00:04.9]} 54... Be5 {[%clk 0:00:15.7]} 55. Rb3 {[%clk 0:00:04.9]}
55... f6 {[%clk 0:00:15.8]} 56. Rf3 {[%clk 0:00:05.4]} 56... Rd2 {[%clk
0:00:15.1]} 57. Re3 {[%clk 0:00:04.9]} 57... Bd4 {[%clk 0:00:14.8]} 58. Rf3
{[%clk 0:00:05.4]} 58... Kf7 {[%clk 0:00:14.5]} 59. Kg3 {[%clk 0:00:05.3]} 59...
g6 {[%clk 0:00:14.4]} 60. Kg2 {[%clk 0:00:06.2]} 60... Ke6 {[%clk 0:00:14.2]}
61. Kg3 {[%clk 0:00:06.2]} 61... Kd5 {[%clk 0:00:14.1]} 62. Kg2 {[%clk
0:00:06.6]} 62... Ke4 {[%clk 0:00:14.3]} 63. Kg3 {[%clk 0:00:06.8]} 63... Rd3
{[%clk 0:00:13.9]} 64. Rxd3 {[%clk 0:00:05.1]} 64... Kxd3 {[%clk 0:00:14]} 65.
Kf3 {[%clk 0:00:06]} 65... Be5 {[%clk 0:00:12.5]} 66. Kg2 {[%clk 0:00:05]} 66...
Ke4 {[%clk 0:00:11.4]} 67. Kg1 {[%clk 0:00:03.6]} 67... Kf3 {[%clk 0:00:11.4]}
68. Kf1 {[%clk 0:00:04.1]} 68... Bd4 {[%clk 0:00:11]} 69. Kg1 {[%clk 0:00:03.9]}
69... Bxf2+ {[%clk 0:00:10.9]} 70. Kf1 {[%clk 0:00:04.8]} 70... Bh4 {[%clk
0:00:10.5]} 71. Kg1 {[%clk 0:00:04.7]} 71... Kg3 {[%clk 0:00:10.7]} 72. Kh1
{[%clk 0:00:05.6]} 72... Kxh3 {[%clk 0:00:11]} 73. Kg1 {[%clk 0:00:06.4]} 73...
Kxg4 {[%clk 0:00:11.6]} 74. Kh1 {[%clk 0:00:07.3]} 74... Kf3 {[%clk 0:00:12.2]}
75. Kh2 {[%clk 0:00:07.4]} 75... Bg3+ {[%clk 0:00:12.3]} 76. Kh1 {[%clk
0:00:06.9]} 76... Be5 {[%clk 0:00:12.9]} 77. Kg1 {[%clk 0:00:07.8]} 77... Kg3
{[%clk 0:00:13.3]} 78. Kh1 {[%clk 0:00:08.7]} 78... f5 {[%clk 0:00:13.8]} 79.
Kg1 {[%clk 0:00:09.5]} 79... f4 {[%clk 0:00:14.2]} 80. Kh1 {[%clk 0:00:10.4]}
80... f3 {[%clk 0:00:14.6]} 81. Kg1 {[%clk 0:00:11.2]} 81... f2+ {[%clk
0:00:14.9]} 82. Kf1 {[%clk 0:00:12.1]} 82... Bd6 {[%clk 0:00:13.9]} 83. Ke2
{[%clk 0:00:12.2]} 83... Kg2 {[%clk 0:00:14.4]} 0-1